Workbook

Sheet LÉEME
D11: Léeme
D16: NVIERTE – Herramienta de cálculo del balance económico
D18: Introducción
D19: Esta herramienta permite evaluar la productividad y rentabilidad de una explotación a través de su producción agrícola anual promedio. La herramienta resulta útil para establecer una referencia o evaluar el impacto de inversiones planificadas y permite al asesor o asesora de SPIS (proveedor, profesional de desarrollo, funcionario o funcionaria de extensión agraria) ayudar a identificar costos innecesarios en una granja, determinar actividades agrícolas con el máximo beneficio y generar correctamente beneficios económicos a partir de diferentes insumos agrícolas.
D26: Consejos y trucos
D36: Sinopsis
D37: Esta herramienta incluye las siguientes hojas:
D38: 1. Información general | G38: sobre la identidad, ubicación y área de la granja
D40: 2. Equipamiento y activos | G40: disponibles actualmente en la granja o que se contemplan en una futura compra
D42: 3. Ingresos: cultivo y ganado | G42: añade ventas actuales o previstas de cultivos estacionales (p. ej. arroz, maíz) perennes (p. ej. árboles frutales) y de ganado y sus respectivos derivados
D45: 4. Otros ingresos | G45: ingresos adicionales no relacionados directamente con la producción agrícola o ganadera, como son la venta de agua o el alquiler de equipamiento
D48: 5. Financiación | G48: calcula el reembolso anual del préstamo en función de la información crediticia
D50: 6. Costos fijos y variables | G50: añade todos los costos fijos y variables/gastos de la empresa agrícola
D52: 7. Declaración de ingresos de la explotación | G52: ¡Sin entrada! Cálculo resumen de la rentabilidad bruta de la empresa agrícola
D54: Hoja de calculación de precios | G54: hoja de cálculo para determinar los precios anuales medios de los cultivos y del ganado
D56: Verificación rápida | G56: hoja de cálculo adjunta para una evaluación básica de la rentabilidad de la explotación previa al análisis completo
D59: Acerca de:
D60: Publicado por: | F60: GIZ & FAO
D61: Responsable: | F61: GIZ project Sustainable Energy for Food - Powering Agriculture
D63: Contacto: | F63: Powering.Agriculture@giz.de
D64: Enlace descarga: | F64: https://energypedia.info/wiki/Toolbox_on_SPIS
D65: Acerca de: | F65: Powering Agriculture: An Energy Grand Challenge for Development. Available at:
F67: https://poweringag.org
D68: Versión: | F68: 1.5 (Enero 2019)
D70: La publicación de la Caja de herramientas de sistemas de riego solar ha sido posible gracias al apoyo brindado por la iniciativa mundial Powering Agriculture: An Energy Grand Challenge for Development (PAEGC) (Energización Rural: Un gran desafío energético para el desarrollo). En 2012, la Agencia de los Estados Unidos para el Desarrollo Internacional (USAID), la Agencia Sueca de Cooperación Internacional para el Desarrollo (Sida), el Ministerio Federal de Cooperación Económica y Desarrollo (BMZ) de Alemania, la empresa de energía Duke Energy Corporation y la Corporación de Inversiones Privadas en el Extranjero (OPIC) juntaron recursos para crear la iniciativa PAEGC. El objetivo de PAEGC es fomentar nuevos enfoques sostenibles con el fin de acelerar el desarrollo y asegurar el establecimiento de energías limpias que incrementen la productividad y/o el valor de la agricultura en países en desarrollo y regiones emergentes sin acceso a fuentes de energía confiables, asequibles y limpias.
D83: Las denominaciones empleadas y la presentación del material en este producto informativo no implican juicio alguno por parte de la Deutsche Gesellschaft für Internationale Zusammenarbeit (GIZ) GmbH, la Organización de las Naciones Unidas para la Alimentación y la Agricultura (FAO), o los socios fundadores de la iniciativa PAEGC, sobre la condición jurídica o el grado de desarrollo de ninguno de los países, territorios, ciudades o zonas citados o de sus autoridades, ni respecto de la delimitación de sus fronteras o límites. La mención de empresas o productos de fabricantes en particular, estén o no patentados, no implica que la GIZ, la FAO o alguno de los socios fundadores de la iniciativa PAEGC los aprueben o recomienden, dándoles preferencia sobre otros de naturaleza similar que no se mencionan. Las opiniones expresadas en este producto informativo son las de su(s) autor(es) o autora(s), y no reflejan necesariamente los puntos de vista o las políticas de la GIZ, la FAO o ninguno de los socios fundadores de la iniciativa PAEGC.
D98: La GIZ, la FAO y los socios fundadores de la iniciativa PAEGC fomentan la utilización, la reproducción y la difusión del material presentado en este producto informativo. A menos que se indique lo contrario, el material puede ser copiado, descargado e impreso con fines de estudio privado, enseñanza e investigación científica, o para su utilización en productos o servicios no comerciales, siempre que se otorgue a la GIZ y la FAO el debido reconocimiento como fuentes y como titulares de los derechos de autor.
D106: © GIZ y FAO, 2019

Sheet List of dropdown (hidden)
A2: Area | B2: CF to ha
A3: ha | B3: 1
A4: Acre | B4: 2.47105
A5: Sq. km | B5: 0.01
A6: Sq. m | B6: 10000
A7: Sq. yard | B7: 11959.9
A8: Sq. ft | B8: 107639
A10: Conversion Factor | B10: =VLOOKUP('1 Información general'!D14,'List of dropdown'!A3:B8,2,FALSE) -> 1
A13: Weight | B13: CF to kg
A14: kg | B14: 1
A15: metric ton | B15: 1000
A16: quintal | B16: 100
A17: pound (lb) | B17: 0.4536
A19: Conversion Factor | B19: =VLOOKUP('1 Información general'!D15,'List of dropdown'!A14:B17,2,FALSE) -> 1

Sheet 1 Información general
A1: INVIERTE - Herramienta de cálculo del balance económico
B2: 1 INFORMACIÓN GENERAL SOBRE LA GRANJA
B5: País | G5: Región
B6: Código/nombre de la granja | G6: Fecha
B8: Localidad
B9: División
B10: Distrito
B11: Asesor
B12: Período de planificación agrícola (años) | D12: 2018 | E12: 2019 | F12: (año con cuatro dígitos)
B13: Moneda utilizada para el cálculo | D13: €
B14: Unidad de medida del área | D14: ha | I14: Factor de conversión a 1 ha | J14: ='List of dropdown'!B10 -> 1
B15: Unidad de medida del peso | D15: kg | I15: Factor de conversión a 1 kg | J15: ='List of dropdown'!B19 -> 1
B18: RECURSOS DE TIERRAS
B20: Derechos de propiedad | D20: Área
B21: + tierras en propiedad | E21: 6 | F21: =+$D$14 -> ha | G21: = | I21: =+E21/$J$14 -> 6 | J21: ha
B22: + tierras adicionales como parte de tierras cooperativa | F22: =+$D$14 -> ha | G22: = | I22: =+E22/$J$14 -> 0 | J22: ha
B23: + tierras adicionales explotadas (colaboración con terceros) | F23: ha | G23: = | I23: 0 | J23: ha
B24: + tierras adicionales arrendadas | F24: ha | G24: = | I24: 0 | J24: ha
B25: - tierras en propiedad arrendadas a terceros | F25: ha | G25: = | I25: 0 | J25: ha
B26: + tierras adicionales en posesión de otras fuentes | F26: ha | G26: = | I26: 0 | J26: ha
B27: - tierras en propiedad no utilizadas o no utilizables | F27: ha | G27: = | I27: 0
D28: Total | E28: =+SUM(E21:E24)-E25+E26-E27 -> 6 | F28: ha | G28: = | I28: 6 | J28: ha
B31: Clasificación de las tierras | D31: Área | E31: de secano | F31: de regadío | I31: Área total
B32: Tierras de cultivos estacionales | E32: 2 | G32: =+$D$14 -> ha | H32: = | I32: =(+E32+F32)/$J$14 -> 2 | J32: ha
B33: Cultivos perennes (con y sin opción de cultivos intercalados) | F33: 2 | G33: ha | H33: = | I33: =(+E33+F33)/$J$14 -> 2 | J33: ha
B34: Invernaderos | G34: ha | H34: = | I34: =(+E34+F34)/$J$14 -> 0 | J34: ha
B35: Pastizales (tierras de pasto) | G35: ha | H35: = | I35: =(+E35+F35)/$J$14 -> 0 | J35: ha
B36: Tierra en barbecho | F36: 2 | G36: ha | H36: = | I36: =(+E36+F36)/$J$14 -> 2 | J36: ha
D37: Total de tierras para agricultura/horticultura | E37: =+SUM(E32:E36) -> 2 | F37: =+SUM(F32:F36) -> 4 | G37: ha | H37: = | I37: =IF((+$I$32+$I$33+$I$34+$I$35+$I$36)=I28,+$I$32+$I$33+$I$34+$I$35+$I$36,"CHECK Property rights") -> 6 | J37: ha

Sheet 2 Equipamiento y activos
A1: INVIERTE - Herramienta de cálculo del balance económico
B2: 2 EQUIPAMIENTO Y ACTIVOS
E4: Código granja | F4: ='1 Información general'!C6 -> 0
B6: Tipo | C6: Costo del equipo existente (cuando se compró originalmente) | D6: Valor residual (al vender equipo existente) | E6: Edad | F6: Vida útil normal | G6: Depreciación anual para sustitución
C10: ='1 Información general'!D13 -> € | D10: ='1 Información general'!D13 -> € | E10: años | F10: años | G10: ='1 Información general'!D13 -> €
B11: Seleccione | C11: 60000 | D11: 10000 | E11: 2 | F11: 20 | G11: =IFERROR(SLN(C11,D11,(F11-E11)),"") -> 2777.777778 | H11: Vida útil normal indicativa: | I11: Seleccione
B12: Seleccione | G12: =IFERROR(SLN(C12,D12,(F12-E12)),"") ->  | H12: (según la calidad)
B13: Seleccione | H13: Cobertizo ganado - 20 años | I13: Cobertizo ganado
B14: Seleccione | H14: Garaje/taller - 20 años | I14: Garaje/taller
B15: Seleccione | H15: Almacén/depósito - 20 años | I15: Almacén/depósito
B16: Seleccione | H16: Equipamiento invernadero - 10 años | I16: Equipamiento invernadero
B17: Seleccione | G17: =IFERROR(SLN(C17,D17,(F17-E17)),"") ->  | H17: Otra edificación - 20 años | I17: Otra edificación
B18: Seleccione | H18: Carro de bueyes - 7 años | I18: Carro de bueyes
B19: Seleccione | H19: Camión/automóvil - 10 años | I19: Camión/automóvil
B20: Seleccione | H20: Tractor - 10 años | I20: Tractor
B21: Seleccione | H21: Arado - 7 años | I21: Arado
B22: Seleccione | H22: Cultivador/rotocultivador - 7 años | I22: Cultivador/rotocultivador
B23: Seleccione | H23: Sembradora - 7 años | I23: Sembradora
B24: Seleccione | H24: Distribuidor de fertilizantes - 7 años | I24: Distribuidor de fertilizantes
B25: Seleccione | H25: Pulverizador - 7 años | I25: Pulverizador
B26: Seleccione | H26: Segadora - 7 años | I26: Segadora
B27: Seleccione | H27: Embaladora - 7 años | I27: Embaladora
B28: Seleccione | H28: Cosechadora de cereales - 10 años | I28: Cosechadora de cereales
H29: Material de riego - 5 años | I29: Material de riego
H30: Bomba de agua - 7 años | I30: Bomba de agua
H31: Generador fotovoltaico - 20 años | I31: Generador fotovoltaico
H32: Pozo/perforación - 20 años | I32: Pozo/perforación
C38: Depreciación total anual | F38: ='1 Información general'!D13 -> € | G38: =+SUM(G11:G36) -> 2777.777778

Sheet 3 Ingresos cultivo y ganado
A1: INVIERTE - Herramienta de cálculo del balance económico
B2: INGRESOS: CULTIVOS ESTACIONALES
E4: Código granja | F4: ='1 Información general'!C6 -> 0
B6: Terreno agrícola en uso: | C6: =SUM(C10:C14) -> 0 | D6: ='1 Información general'!D14 -> ha
D7: Unidad | E7: Rendimiento por ha o cantidad | F7: Precio unidad | G7: Valor
B8: Ventas
B9: Tipos de cultivo | C9: Área:
G10: =+F10*E10*C10 -> 0
G11: =+F11*E11*C11 -> 0
G12: 0
G13: 0
G14: 0
B15: Subproductos:
G16: =+F16*E16 -> 0
G17: 0
G18: 0
B19: PRODUCTO BRUTO | G19: =SUM(G10:G18) -> 0
B20: INGRESOS: CULTIVOS PERENNES
B22: Terreno agrícola en uso: | C22: =SUM(C26:C30) -> 0 | D22: ='1 Información general'!D14 -> ha
D23: Unidad | E23: Rendimiento por ha o cantidad | F23: Precio unidad | G23: Valor
B24: Ventas
B25: Tipos de cultivo | C25: Área:
G26: =+F26*E26*C26 -> 0
G27: =+F27*E27*C27 -> 0
G28: 0
G29: 0
G30: 0
B31: Subproductos:
G32: =+F32*E32 -> 0
G33: =+F33*E33 -> 0
G34: 0
B35: PRODUCTO BRUTO | G35: =SUM(G26:G34) -> 0
B36: INGRESOS: GANADERÍA
B39: Ganado en la producción: | C39: =SUM(C43:C56) -> 3 | D39: Ganado vendido | F39: =SUM(E43:E56) -> 2 | G39: cabeza
D40: Unidad | E40: Cantidad | F40: Precio unidad | G40: Valor
B41: Para la producción | D41: Para la venta
B42: Tipo de ganado | C42: Cantidad
B43: Vacas lecheras | C43: 3 | D43: cabezas | G43: =+F43*E43 -> 0
B44: Terneros | D44: cabezas | G44: =+F44*E44 -> 0
B45: Bueyes adultos | D45: cabezas | G45: 0
B46: Bueyes jóvenes | D46: cabezas | E46: 2 | G46: 0
B47: Becerros | D47: cabezas | G47: 0
B48: Ovejas hembra | D48: cabezas | G48: 0
B49: Ovejas macho | D49: cabezas | G49: 0
B50: Corderos | D50: cabezas | G50: 0
B51: Cabras hembra | D51: cabezas | G51: 0
B52: Cabras macho | D52: cabezas | G52: 0
B53: Cabritos | D53: cabezas | G53: 0
B54: Pollos | D54: cabezas | G54: 0
G55: 0 | K55: Calculadora para subproductos
G56: 0
B57: Subproductos | K57: Producción de leche diaria: | O57: =IF(K57="Producción de leche diaria:","litros/día","huevos/día") -> litros/día
B58: Leche | D58: litros | G58: =+F58*E58 -> 0 | K58: Cantidad de vacas lecheras: | O58: cabezas
B59: Huevos | G59: =+F59*E59 -> 0 | K59: Días de ordeño anuales: | O59: días/año
B60: Piel | G60: =+F60*E60 -> 0 | K60: Nota: los períodos de lactación del ganado lechero suelen ser de entre 209 y 305 días al año.
B61: Estiércol | G61: =+F61*E61 -> 0
G62: 0 | K62: Total | N62: =N57*N58*N59 -> 0 | O62: =IF(K57="Producción de leche diaria:","litros/año","huevos/año") -> litros/año
B63: PRODUCTO BRUTO | G63: =SUM(G43:G62) -> 0

Sheet 4 Otros ingresos
A1: INVIERTE - Herramienta de cálculo del balance económico
B2: 4 OTROS INGRESOS
K4: Código granja | M4: ='1 Información general'!C6 -> 0
B6: Mes | C6: Enero | D6: Febrero | E6: Marzo | F6: Abril | G6: Mayo | H6: Junio | I6: Julio | J6: Agosto | K6: Septiembre | L6: Octubre | M6: Noviembre | N6: Diciembre | O6: Total
B7: Tipo OTROS INGRESOS | C7: 1 | D7: 2 | E7: 3 | F7: 4 | G7: 5 | H7: 6 | I7: 7 | J7: 8 | K7: 9 | L7: 10 | M7: 11 | N7: 12
B8: Venta de agua | O8: =+SUM(C8:N8) -> 0
B9: Alquiler del equipamiento | O9: =+SUM(C9:N9) -> 0
B10: Arendar espacio de almacenamiento | O10: =+SUM(C10:N10) -> 0
B11: Arrendar tierra | O11: 0
B12: Arrendar mano de obra | O12: =+SUM(C12:N12) -> 0
O13: =+SUM(C13:N13) -> 0
O14: =+SUM(C14:N14) -> 0
B15: TOTAL OTROS INGRESOS mensuales | C15: =+SUM(C8:C14) -> 0 | D15: 0 | E15: 0 | F15: 0 | G15: 0 | H15: 0 | I15: 0 | J15: 0 | K15: 0 | L15: 0 | M15: 0 | N15: 0 | O15: =+SUM(O8:O14) -> 0

Sheet 5 Financiación
A1: INVIERTE - Herramienta de cálculo del balance económico
A2: CRÉDITOS Y FINANCIACIÓN (calculadora simplificada, a confirmar con proveedor de préstamos)
J4: Código granja | K4: ='1 Información general'!C6 -> 0
A5: Calculadora | I5: Introducir manual-mente:
A6: Nombre entidad bancaria | B6: Importe préstamo | C6: Período crédito (años) | D6: Mes de aceptación del crédito | E6: Año de aceptación del crédito | F6: Tasa de interés anual | G6: Pago mensual del préstamo | J6: Nota: El valor de la calculadora prevalecerá sobre el valor manual. Para usar el valor manual, asegúrese de que el valor de la calculadora es 0.
H7: O BIEN
B9: 7000 | C9: 3 | D9: 1 | E9: 2018 | F9: 0.08 | G9: =IF(D9,-PMT(F9/12,C9*12,B9),"0") -> 219.3545582
G10: =IF(D10,-PMT(F10/12,C10*12,B10),"0") -> 0
G11: =IF(D11,-PMT(F11/12,C11*12,B11),"0") -> 0
G12: 0
G13: 0
G14: 0
G15: 0
A16: CRÉDITO TOTAL | B16: =SUM(B9:B15) -> 7000 | G16: =SUM(G9:G15) -> 219.3545582 | I16: =SUM(I9:I15) -> 0
B17: Total anual de amortizaciones de préstamos | G17: =G16*12 -> 2632.254699 | I17: =I16*12 -> 0

Sheet 6 Costos fijos y variables
A1: INVIERTE - Herramienta de cálculo del balance económico
B2: 4 COSTOS FIJOS Y VARIABLES
L4: Código granja | M4: ='1 Información general'!C6 -> 0
B6: Mes | C6: Enero | D6: Febrero | E6: Marzo | F6: Abril | G6: Mayo | H6: Junio | I6: Julio | J6: Agosto | K6: Septiembre | L6: Octubre | M6: Noviembre | N6: Diciembre | O6: Total
C7: 1 | D7: 2 | E7: 3 | F7: 4 | G7: 5 | H7: 6 | I7: 7 | J7: 8 | K7: 9 | L7: 10 | M7: 11 | N7: 12
B8: COSTOS FIJOS
B9: Costos por financiación | C9: ='5 Financiación'!$G$16 -> 219.3545582 | D9: ='5 Financiación'!$G$16 -> 219.3545582 | E9: ='5 Financiación'!$G$16 -> 219.3545582 | F9: ='5 Financiación'!$G$16 -> 219.3545582 | G9: ='5 Financiación'!$G$16 -> 219.3545582 | H9: ='5 Financiación'!$G$16 -> 219.3545582 | I9: ='5 Financiación'!$G$16 -> 219.3545582 | J9: ='5 Financiación'!$G$16 -> 219.3545582 | K9: ='5 Financiación'!$G$16 -> 219.3545582 | L9: ='5 Financiación'!$G$16 -> 219.3545582 | M9: ='5 Financiación'!$G$16 -> 219.3545582 | N9: ='5 Financiación'!$G$16 -> 219.3545582 | O9: =+SUM(C9:N9) -> 2632.254699
B10: Costos por depreciación | C10: ='2 Equipamiento y activos'!$G$38/12 -> 231.4814815 | D10: ='2 Equipamiento y activos'!$G$38/12 -> 231.4814815 | E10: ='2 Equipamiento y activos'!$G$38/12 -> 231.4814815 | F10: ='2 Equipamiento y activos'!$G$38/12 -> 231.4814815 | G10: ='2 Equipamiento y activos'!$G$38/12 -> 231.4814815 | H10: ='2 Equipamiento y activos'!$G$38/12 -> 231.4814815 | I10: ='2 Equipamiento y activos'!$G$38/12 -> 231.4814815 | J10: ='2 Equipamiento y activos'!$G$38/12 -> 231.4814815 | K10: ='2 Equipamiento y activos'!$G$38/12 -> 231.4814815 | L10: ='2 Equipamiento y activos'!$G$38/12 -> 231.4814815 | M10: ='2 Equipamiento y activos'!$G$38/12 -> 231.4814815 | N10: ='2 Equipamiento y activos'!$G$38/12 -> 231.4814815 | O10: =+SUM(C10:N10) -> 2777.777778
B11: Cuotas de afiliación | O11: =+SUM(C11:N11) -> 0
B12: Costos de seguros | O12: =+SUM(C12:N12) -> 0
B13: Impuesto rústico | O13: 0
B14: Contribución al fondo social | O14: =+SUM(C14:N14) -> 0
B15: Tasas de arrendamiento de equipamiento | O15: 0
B16: Costos de arrendamiento de tierras | O16: =+SUM(C16:N16) -> 0
B17: - | O17: =+SUM(C17:N17) -> 0
B18: - | O18: 0
B19: TOTAL COSTOS FIJOS mensuales | C19: =+SUM(C9:C18) -> 450.8360397 | D19: =+SUM(D9:D18) -> 450.8360397 | E19: 450.8360397 | F19: 450.8360397 | G19: 450.8360397 | H19: 450.8360397 | I19: 450.8360397 | J19: 450.8360397 | K19: 450.8360397 | L19: 450.8360397 | M19: 450.8360397 | N19: 450.8360397 | O19: =+SUM(O9:O18) -> 5410.032477
B21: COSTOS VARIABLES
B22: Combustible y lubricantes en general | N22: 50 | O22: =+SUM(C22:N22) -> 50
B23: Suministro de agua | O23: =+SUM(C23:N23) -> 0
B24: Suministro de electricidad | O24: 0
B25: Tasas de transporte regulares | O25: 0
B26: Salario del personal permanente | O26: 0
B27: Salario del personal temporal | O27: 0
B28: Semillas
B29: Estiércol y fertilizante
B30: Protección de plantas
B31: Forraje
B32: Servicios veterinarios
B33: Tracción y mecanización
B34: Maquinaria (mantenimiento y arreglos)
B35: Infraestructura (mantenimiento y arreglos)
B36: Riego (mantenimiento y arreglos)
B37: - | O37: 0
B38: - | O38: 0
B39: COSTOS VARIABLES mensuales | C39: =+SUM(C22:C38) -> 0 | D39: 0 | E39: 0 | F39: 0 | G39: 0 | H39: 0 | I39: 0 | J39: 0 | K39: 0 | L39: 0 | M39: 0 | N39: 50 | O39: 50

Sheet Graph table (hidden)
A7: FIXED COSTS | B7: ='6 Costos fijos y variables'!B9 -> Costos por financiación | C7: ='6 Costos fijos y variables'!O9 -> 2632.254699
B8: ='6 Costos fijos y variables'!B10 -> Costos por depreciación | C8: ='6 Costos fijos y variables'!O10 -> 2777.777778
B9: ='6 Costos fijos y variables'!B11 -> Cuotas de afiliación | C9: ='6 Costos fijos y variables'!O11 -> 0
B10: ='6 Costos fijos y variables'!B12 -> Costos de seguros | C10: ='6 Costos fijos y variables'!O12 -> 0
B11: ='6 Costos fijos y variables'!B13 -> Impuesto rústico | C11: ='6 Costos fijos y variables'!O13 -> 0
B12: ='6 Costos fijos y variables'!B14 -> Contribución al fondo social | C12: ='6 Costos fijos y variables'!O14 -> 0
B13: ='6 Costos fijos y variables'!B15 -> Tasas de arrendamiento de equipamiento | C13: ='6 Costos fijos y variables'!O15 -> 0
B14: ='6 Costos fijos y variables'!B16 -> Costos de arrendamiento de tierras | C14: ='6 Costos fijos y variables'!O16 -> 0
B15: ='6 Costos fijos y variables'!B17 -> - | C15: ='6 Costos fijos y variables'!O17 -> 0
B16: ='6 Costos fijos y variables'!B18 -> - | C16: ='6 Costos fijos y variables'!O18 -> 0
A17: ='6 Costos fijos y variables'!B21 -> COSTOS VARIABLES | B17: ='6 Costos fijos y variables'!B22 -> Combustible y lubricantes en general | C17: ='6 Costos fijos y variables'!O22 -> 50
B18: ='6 Costos fijos y variables'!B23 -> Suministro de agua | C18: ='6 Costos fijos y variables'!O23 -> 0
B19: ='6 Costos fijos y variables'!B24 -> Suministro de electricidad | C19: ='6 Costos fijos y variables'!O24 -> 0
B20: ='6 Costos fijos y variables'!B25 -> Tasas de transporte regulares | C20: ='6 Costos fijos y variables'!O25 -> 0
B21: ='6 Costos fijos y variables'!B26 -> Salario del personal permanente | C21: ='6 Costos fijos y variables'!O26 -> 0
B22: ='6 Costos fijos y variables'!B27 -> Salario del personal temporal | C22: ='6 Costos fijos y variables'!O27 -> 0
B23: ='6 Costos fijos y variables'!B28 -> Semillas | C23: ='6 Costos fijos y variables'!O28 -> 0
B24: ='6 Costos fijos y variables'!B29 -> Estiércol y fertilizante | C24: ='6 Costos fijos y variables'!O29 -> 0
B25: ='6 Costos fijos y variables'!B30 -> Protección de plantas | C25: ='6 Costos fijos y variables'!O30 -> 0
B26: ='6 Costos fijos y variables'!B31 -> Forraje | C26: ='6 Costos fijos y variables'!O31 -> 0
B27: ='6 Costos fijos y variables'!B32 -> Servicios veterinarios | C27: ='6 Costos fijos y variables'!O32 -> 0
B28: ='6 Costos fijos y variables'!B33 -> Tracción y mecanización | C28: ='6 Costos fijos y variables'!O33 -> 0
B29: ='6 Costos fijos y variables'!B34 -> Maquinaria (mantenimiento y arreglos) | C29: ='6 Costos fijos y variables'!O34 -> 0
B30: ='6 Costos fijos y variables'!B35 -> Infraestructura (mantenimiento y arreglos) | C30: ='6 Costos fijos y variables'!O35 -> 0
B31: ='6 Costos fijos y variables'!B36 -> Riego (mantenimiento y arreglos) | C31: ='6 Costos fijos y variables'!O36 -> 0
B32: ='6 Costos fijos y variables'!B37 -> - | C32: ='6 Costos fijos y variables'!O37 -> 0
B33: ='6 Costos fijos y variables'!B38 -> - | C33: ='6 Costos fijos y variables'!O38 -> 0

Sheet 7 Declaración de ingresos
A1: INVIERTE - Herramienta de cálculo del balance económico
B2: 8 DECLARACIÓN DE INGRESOS DE LA EXPLOTACIÓN
F4: Código granja | G4: ='1 Información general'!C6 -> 0
C6: + | D6: Valor bruto producción cultivos estacionales | E6: =SUM('3 Ingresos cultivo y ganado'!G10:G14) -> 0 | F6: ='1 Información general'!$D$13 -> € | G6: + | H6: =IF($E$16=0,0,(+E6/$E$16)*(1-$E$14)) -> 0
C7: + | D7: Valor bruto producción subproductos cultivos estacionales | E7: =SUM('3 Ingresos cultivo y ganado'!G16:G18) -> 0 | F7: ='1 Información general'!$D$13 -> € | G7: + | H7: =IF($E$16=0,0,(+E7/$E$16)*(1-$E$14)) -> 0
C8: + | D8: Valor bruto producción cultivos perennes | E8: =SUM('3 Ingresos cultivo y ganado'!G26:G30) -> 0 | F8: ='1 Información general'!$D$13 -> € | G8: + | H8: 0
C9: + | D9: Valor bruto producción subproductos cultivos perennes | E9: =SUM('3 Ingresos cultivo y ganado'!G32:G34) -> 0 | F9: ='1 Información general'!$D$13 -> € | G9: + | H9: 0
C10: + | D10: Valor bruto producción ganado | E10: =SUM('3 Ingresos cultivo y ganado'!G43:G56) -> 0 | F10: ='1 Información general'!$D$13 -> € | G10: + | H10: 0
C11: + | D11: Valor bruto producción subproductos ganado | E11: =SUM('3 Ingresos cultivo y ganado'!G58:G62) -> 0 | F11: ='1 Información general'!$D$13 -> € | G11: + | H11: 0
C12: + | D12: Valor bruto de otros ingresos | E12: ='4 Otros ingresos'!O15 -> 0 | F12: ='1 Información general'!$D$13 -> € | G12: + | H12: 0
C14: - | D14: Pérdidas anticipadas de total de ventas (factor de reducción) | E14: 0.1 | F14: %
C16: = | D16: INGRESOS BRUTOS DE LA GRANJA | E16: =SUM(E6:E12)-(SUM(E6:E12)*E14) -> 0 | F16: ='1 Información general'!$D$13 -> € | G16: = | H16: =SUM(H6:H12) -> 0
C19: - | D19: Total costos fijos | E19: ='6 Costos fijos y variables'!O19 -> 5410.032477 | F19: ='1 Información general'!$D$13 -> € | G19: + | H19: =IF($E$21=0,0,+E19/$E$21) -> 0.9908425453
C20: - | D20: Total costos variables | E20: ='6 Costos fijos y variables'!O39 -> 50 | F20: ='1 Información general'!$D$13 -> € | G20: + | H20: =IF($E$21=0,0,+E20/$E$21) -> 0.009157454688
C21: = | D21: TOTAL DE COSTOS | E21: =SUM(E19:E20) -> 5460.032477 | F21: ='1 Información general'!$D$13 -> € | G21: = | H21: =SUM(H19:H20) -> 1
C57: = | D57: ="BENEFICIO BRUTO DE LA GRANJA para el período " & '1 Información general'!D12 -> BENEFICIO BRUTO DE LA GRANJA para el período 2018 | E57: ="a " & '1 Información general'!E12 -> a 2019 | G57: =E16-E21 -> -5460.032477 | H57: ='1 Información general'!$D$13 -> €
D58: Margen de beneficio agrícola | G58: =(E16-E21)/E16 -> 
D60: ="Beneficio promedio "&'1 Información general'!$D$14&" de cultivos estacionales:" -> Beneficio promedio ha de cultivos estacionales: | F60: =IFERROR('3 Ingresos cultivo y ganado'!G19/'3 Ingresos cultivo y ganado'!C6,"sin cultivos") -> sin cultivos | H60: ='1 Información general'!$D$13&" por"&" "&'1 Información general'!$D$14 -> € por ha
D61: ="Beneficio promedio "&'1 Información general'!D14&" de cultivos perennes:" -> Beneficio promedio ha de cultivos perennes: | F61: =IFERROR('3 Ingresos cultivo y ganado'!G35/'3 Ingresos cultivo y ganado'!C22,"sin cultivos") -> sin cultivos | H61: ='1 Información general'!$D$13&" por"&" "&'1 Información general'!$D$14 -> € por ha
D62: Beneficio promedio por cabeza de ganado: | F62: =IFERROR(('3 Ingresos cultivo y ganado'!G63+'3 Ingresos cultivo y ganado'!F39)/'3 Ingresos cultivo y ganado'!C39,"no livestock") -> 0.6666666667 | H62: ='1 Información general'!$D$13&" por cabeza" -> € por cabeza
D63: Área total bajo cultivo: | F63: ='3 Ingresos cultivo y ganado'!C6+'3 Ingresos cultivo y ganado'!C22 -> 0 | H63: ='1 Información general'!D14 -> ha | J63: =SUM('1 Información general'!I32:I36)-F63 -> 6
D64: =IF(J63<0,"Cultivated area does not match available crop area (1. General Information)","") -> 

Sheet Hoja de cálculo de precios
A1: INVIERTE - Herramienta de cálculo del balance económico
A2: Hoja suplementaria para calcular los costos anuales promedio de cultivos y ganado seleccionados sobre la base de variaciones mensuales estacionales
B3: Enero | C3: Febrero | D3: Marzo | E3: Abril | F3: Mayo | G3: Junio | H3: Julio | I3: Agosto | J3: Septiembre | K3: Octubre | L3: Noviembre | M3: Diciembre | N3: PROMEDIO
B4: Precio unid. | C4: Precio unid. | D4: Precio unid. | E4: Precio unid. | F4: Precio unid. | G4: Precio unid. | H4: Precio unid. | I4: Precio unid. | J4: Precio unid. | K4: Precio unid. | L4: Precio unid. | M4: Precio unid. | N4: Precio unid.
A5: Cultivos estacionales
A6: ='3 Ingresos cultivo y ganado'!B10 -> 0 | N6: =AVERAGE(B6:M6) -> 
A7: ='3 Ingresos cultivo y ganado'!B11 -> 0 | N7: =AVERAGE(B7:M7) -> 
A8: ='3 Ingresos cultivo y ganado'!B12 -> 0
A9: ='3 Ingresos cultivo y ganado'!B13 -> 0
A10: ='3 Ingresos cultivo y ganado'!B14 -> 0
A11: ='3 Ingresos cultivo y ganado'!B15 -> Subproductos:
A12: ='3 Ingresos cultivo y ganado'!B16 -> 0
A13: ='3 Ingresos cultivo y ganado'!B17 -> 0
A14: ='3 Ingresos cultivo y ganado'!B18 -> 0
A15: Cultivos perennes
A16: ='3 Ingresos cultivo y ganado'!B26 -> 0
A17: ='3 Ingresos cultivo y ganado'!B27 -> 0
A18: ='3 Ingresos cultivo y ganado'!B28 -> 0
A19: ='3 Ingresos cultivo y ganado'!B29 -> 0
A20: ='3 Ingresos cultivo y ganado'!B30 -> 0
A21: ='3 Ingresos cultivo y ganado'!B31 -> Subproductos:
A22: ='3 Ingresos cultivo y ganado'!B32 -> 0
A23: ='3 Ingresos cultivo y ganado'!B33 -> 0
A24: ='3 Ingresos cultivo y ganado'!B34 -> 0
A25: Ganado
A26: ='3 Ingresos cultivo y ganado'!B43 -> Vacas lecheras
A27: ='3 Ingresos cultivo y ganado'!B44 -> Terneros
A28: ='3 Ingresos cultivo y ganado'!B45 -> Bueyes adultos
A29: ='3 Ingresos cultivo y ganado'!B46 -> Bueyes jóvenes
A30: ='3 Ingresos cultivo y ganado'!B47 -> Becerros
A31: ='3 Ingresos cultivo y ganado'!B48 -> Ovejas hembra
A32: ='3 Ingresos cultivo y ganado'!B49 -> Ovejas macho
A33: ='3 Ingresos cultivo y ganado'!B50 -> Corderos
A34: ='3 Ingresos cultivo y ganado'!B51 -> Cabras hembra
A35: ='3 Ingresos cultivo y ganado'!B52 -> Cabras macho
A36: ='3 Ingresos cultivo y ganado'!B53 -> Cabritos
A37: ='3 Ingresos cultivo y ganado'!B54 -> Pollos
A38: ='3 Ingresos cultivo y ganado'!B55 -> 0
A39: ='3 Ingresos cultivo y ganado'!B56 -> 0
A40: ='3 Ingresos cultivo y ganado'!B57 -> Subproductos
A41: ='3 Ingresos cultivo y ganado'!B58 -> Leche
A42: ='3 Ingresos cultivo y ganado'!B59 -> Huevos
A43: ='3 Ingresos cultivo y ganado'!B60 -> Piel
A44: ='3 Ingresos cultivo y ganado'!B61 -> Estiércol
A45: ='3 Ingresos cultivo y ganado'!B62 -> 0

Sheet Verificación rápida
A1: INVIERTE - Herramienta de cálculo del balance económico
B2: VERIFICACIÓN RÁPIDA
B6: Gasto anual
B7: Tipo de gasto | C7: Ejemplos | D7: Importe anual | F7: Calculadora
B8: Gastos cultivos estacionales | C8: Plántulas, pesticidas, fertilizantes, protección, etc | G8: sumar: | H8: multiplicar: | I8: dividir:
B9: Gastos cultivos perennes | C9: Plántulas, pesticidas, fertilizantes, protección, etc | F9: a.
B10: Gastos ganado | C10: Nuevo ganado, forraje, matanza, servicios veterinarios, etc | F10: b.
B11: Operación y mantenimiento - Infraestructura | C11: Renovaciones de edificios, pintura, yesería, cercas, electricidad, agua, etc | F11: c.
B12: Operación y mantenimiento - Equipo fijo | C12: Bombas de agua, equipos de riego, equipos de embalaje, fresado, combustible, piezas de repuesto, reparaciones, etc | F12: d.
B13: Operación y mantenimiento - Equipo móvil | C13: Tractor, camiones, arado, remolque, combustible, piezas de repuesto, reparaciones, etc. | F13: e.
B14: Mano de obra | C14: Salarios, beneficios, salario propio (?), etc | F14: Total | G14: =SUM(G9:G13) -> 0 | H14: =H9*H10 -> 0 | I14: =I9/I10 -> 
B15: Ventas y distribución | C15: Embalaje, tarifas, publicidad, etc
B16: Manejo y administración | C16: Alquiler, consumibles de oficina, seguros, membresías, reembolsos de préstamos, etc
D17: =SUM(D7:D16) -> 0
B19: Ingreso anual
B20: Tipo de ingreso | C20: Ejemplos | D20: Importe anual
B21: Ventas cultivos estacionales | C21: Tomates, granos, arroz, productos de valor agregado, etc
B22: Subproductos de cultivos estacionales | C22: Compost, forraje, producto de valor agregado, etc
B23: Ventas cultivos perennes | C23: Cítricos, manzanas, dátiles, bayas, productos de valor agregado, etc
B24: Subproductos de cultivos perennes | C24: Madera de combustión, mantillo, producto de valor agregado, etc
B25: Venta de ganado | C25: Ganado, ovejas, gallinas, etc
B26: Subproductos de ganado | C26: Estiécrol, huevos, leche, lana, producto de valor agregado
B27: Ingresos por arrendamientos | C27: Mano de obra, vehículos, tierra, etc
B28: Ingresos por servicios | C28: Trabajo subcontratado, servicio de mantenimiento, servicio de empaque, transporte, etc
D30: =SUM(D21:D29) -> 0
C32: Balance aproximado: | D32: =D30-D17 -> 0
B33: =IF(D32>0,"You are profitable! Proceed with detailed analysis to be sure.",(IF(D32<0,"You are making a loss. Review your values or consider additional income opportunities or means to reduce expenses.",""))) -> 

Sheet Hoja de traducción
A2: HOJA DE TRADUCCIÓN
A4: Introducción
A5: Algunas partes del texto usado en esta herramienta forman parte de fórmulas basadas en reconocimento de texto. Para mantener la integridad y el funcionamiento de las fórmulas, dichos fragmentos permanecerán en inglés. Una lista de los fragmentos de texto y su traducción correspondiente ha sido compilada en esta hoja de traducción complementaria:
A6: Texto original en inglés | B6: Hoja | C6: Traducción al español
A7: Acre | B7: 1 Información general | C7: acre
A8: ha | B8: 1 Información general | C8: ha
A9: kg | B9: 1 Información general | C9: kg
A10: metric ton | B10: 1 Información general | C10: tonelada métrica
A11: no crops | B11: 7 Declaración de ingresos | C11: sin cultivos
A12: pound (lb) | B12: 1 Información general | C12: libras
A13: quintal | B13: 1 Información general | C13: quintal
A14: Sq. feet | B14: 1 Información general | C14: pies cuadrados
A15: Sq. yard | B15: 1 Información general | C15: yarda cuadrada
A16: Sq.km | B16: 1 Información general | C16: kilómetro cuadrado
A17: Sq.m | B17: 1 Información general | C17: metro cuadrado
